bitfinex-derivatives/quotes_BNBF0:USTF0_20250401
["timestamp","ask_amount","ask_price","bid_price","bid_amount"]
[1743489377354,0.28591851,609.26,607.43,1.60825604]
[1743489377554,0.30187476,609.25,607.43,1.60825604]
[1743489379354,0.30187476,609.24,607.43,1.60825604]
[1743489379555,0.30187476,609.23,607.43,1.60825604]
[1743489379856,0.30187476,609.22,607.43,1.60825604]
[1743489380052,0.30187476,609.23,607.43,1.60825604]
[1743489380252,0.30187476,609.22,607.43,1.60825604]
[1743489380456,0.28598078,609.24,607.43,1.60825604]
[1743489380457,0.30187476,609.23,607.43,1.60825604]
[1743489382258,0.28598078,609.24,607.43,1.60825604]
[1743489382259,0.30189029,609.22,607.43,1.60825604]
[1743489382559,0.30189029,609.21,607.43,1.60825604]
[1743489384254,0.30189029,609.26,607.43,1.60825604]
[1743489384459,0.30189029,609.25,607.43,1.60825604]
[1743489384652,0.30189029,609.24,607.43,1.60825604]
[1743489384851,0.30189029,609.26,607.43,1.60825604]
[1743489385454,0.30189174,609.25,607.43,1.60825604]
[1743489385655,0.30189174,609.26,607.43,1.60825604]
[1743489385859,0.30189174,609.25,607.43,1.60825604]
[1743489386059,0.30189174,609.26,607.43,1.60825604]
[1743489386260,0.30189174,609.25,607.43,1.60825604]
[1743489386462,0.30189174,609.26,607.43,1.60825604]
[1743489386660,0.30189174,609.25,607.43,1.60825604]
[1743489386854,0.30189174,609.26,607.43,1.60825604]
[1743489387060,0.30189174,609.25,607.43,1.60825604]
[1743489387357,0.32826169,609.27,607.43,1.60825604]
[1743489388762,0.28596785,609.26,607.43,1.60825604]
[1743489391367,0.32826169,609.27,607.43,1.60825604]
[1743489391568,0.28600193,609.25,607.43,1.60825604]
[1743489391769,0.30191711,609.24,607.43,1.60825604]
[1743489392868,0.32828324,609.23,607.43,1.60825604]
[1743489393065,0.30191711,609.22,607.43,1.60825604]
[1743489393267,0.32829402,609.21,607.43,1.60825604]
[1743489393566,0.30202719,609.2,607.43,1.60825604]
[1743489393764,0.32830479,609.19,607.43,1.60825604]
[1743489393965,0.30202719,609.18,607.43,1.60825604]
[1743489394165,0.63033737,609.18,607.43,1.60825604]
[1743489394466,0.5880879,609.17,607.43,1.60825604]
[1743489394663,0.30202719,609.16,607.43,1.60825604]
[1743489395163,0.30203076,609.15,607.43,1.60825604]
[1743489395363,0.30203076,609.14,607.43,1.60825604]
[1743489395668,0.30203076,609.13,607.43,1.60825604]
[1743489395867,0.30203076,609.16,607.43,1.60825604]
[1743489396065,0.30203076,609.15,607.43,1.60825604]
[1743489396265,0.30203076,609.16,607.43,1.60825604]
[1743489396465,0.30203076,609.15,607.43,1.60825604]
[1743489396666,0.30202287,609.14,607.43,1.60825604]
[1743489396866,0.30202287,609.13,607.43,1.60825604]
[1743489397067,0.30202287,609.12,607.43,1.60825604]
[1743489397370,0.30202287,609.11,607.43,1.60825604]
[1743489397565,0.28606306,609.12,607.43,1.60825604]
[1743489397770,0.30202287,609.11,607.43,1.60825604]
[1743489398267,0.30200631,609.1,607.43,1.60825604]
[1743489398470,0.30200631,609.09,607.43,1.60825604]
[1743489398770,0.30200631,609.08,607.43,1.60825604]
[1743489398971,0.30200631,609.11,607.43,1.60825604]
[1743489399172,0.30200631,609.1,607.43,1.60825604]
[1743489399468,0.30200631,609.09,607.43,1.60825604]
[1743489399666,0.30200631,609.11,607.43,1.60825604]
[1743489399869,0.30201696,609.1,607.43,1.60825604]
[1743489400171,0.30201696,609.09,607.43,1.60825604]
[1743489400371,0.30201696,609.08,607.43,1.60825604]
[1743489400567,0.30201696,609.07,607.43,1.60825604]
[1743489400772,0.30201696,609.06,607.43,1.60825604]
[1743489400967,0.30201696,609.08,607.43,1.60825604]
[1743489401164,0.30201696,609.07,607.43,1.60825604]
[1743489401368,0.30201696,609.08,607.43,1.60825604]
[1743489401571,0.30201696,609.07,607.43,1.60825604]
[1743489401874,0.30201696,609.06,607.43,1.60825604]
[1743489402071,0.30201696,609.05,607.43,1.60825604]
[1743489402273,0.30201696,609.04,607.43,1.60825604]
[1743489402574,0.30201696,609.03,607.43,1.60825604]
[1743489402769,0.30201696,609.02,607.43,1.60825604]
[1743489402973,0.30201696,609.08,607.43,1.60825604]
[1743489403470,0.30201696,609.07,607.43,1.60825604]
[1743489403775,0.30201696,609.06,607.43,1.60825604]
[1743489406373,0.30201696,609.17,607.43,1.60825604]
[1743489406576,0.28607482,609.05,607.43,1.60825604]
[1743489406777,0.30201696,609.04,607.43,1.60825604]
[1743489407179,0.28605483,609.04,607.43,1.60825604]
[1743489407381,0.30201696,609.03,607.43,1.60825604]
[1743489407881,0.28605483,609.04,607.43,1.60825604]
[1743489408075,0.30200446,609.03,607.43,1.60825604]
[1743489408478,0.30200857,609.02,607.43,1.60825604]
[1743489408677,0.28605483,609.04,607.43,1.60825604]
[1743489409278,0.32831018,609.18,607.43,1.60825604]
[1743489409476,0.30200586,609.17,607.43,1.60825604]
[1743489409678,0.28605248,609.03,607.43,1.60825604]
[1743489409883,0.32831018,609.18,607.43,1.60825604]
[1743489410081,0.30200534,609.17,607.43,1.60825604]
[1743489410281,0.28605365,609.02,607.43,1.60825604]
[1743489410478,0.32831018,609.18,607.43,1.60825604]
[1743489410676,0.30200446,609.17,607.43,1.60825604]
[1743489410981,0.28605365,609.01,607.43,1.60825604]
[1743489411178,0.32831018,609.18,607.43,1.60825604]
[1743489411379,0.28605365,609.0,607.43,1.60825604]
[1743489411879,0.32831018,609.18,607.43,1.60825604]
[1743489412075,0.28605248,608.99,607.43,1.60825604]
[1743489412280,0.32831018,609.18,607.43,1.60825604]
[1743489412583,0.28605365,608.98,607.43,1.60825604]
[1743489412984,0.32831018,609.18,607.43,1.60825604]
[1743489413186,0.28605365,608.97,607.43,1.60825604]
[1743489413587,0.32831018,609.18,607.43,1.60825604]
[1743489413886,0.28602779,608.96,607.43,1.60825604]
[1743489414088,0.32831018,609.18,607.43,1.60825604]
[1743489414481,0.28602896,608.95,607.43,1.60825604]
[1743489414686,0.32831018,609.18,607.43,1.60825604]
[1743489414981,0.28602896,608.94,607.43,1.60825604]
[1743489415388,0.32831018,609.18,607.43,1.60825604]
[1743489415586,0.28602426,608.93,607.43,1.60825604]
[1743489416088,0.32831018,609.18,607.43,1.60825604]
[1743489416387,0.28602426,608.92,607.43,1.60825604]
[1743489416686,0.32831018,609.18,607.43,1.60825604]
[1743489416887,0.28602426,608.91,607.43,1.60825604]
[1743489417086,0.32831018,609.18,607.43,1.60825604]
[1743489417484,0.28602426,608.9,607.43,1.60825604]
[1743489417686,0.32831018,609.18,607.43,1.60825604]
[1743489418082,0.28601486,608.89,607.43,1.60825604]
[1743489418286,0.32831018,609.18,607.43,1.60825604]
[1743489418688,0.28601486,608.88,607.43,1.60825604]
[1743489418982,0.32831018,609.18,607.43,1.60825604]
[1743489419187,0.28601251,608.87,607.43,1.60825604]
[1743489419687,0.32831018,609.18,607.43,1.60825604]
[1743489419884,0.28601251,608.86,607.43,1.60825604]
[1743489420084,0.32831018,609.18,607.43,1.60825604]
[1743489420489,0.28601251,608.85,607.43,1.60825604]
[1743489420883,0.32831018,609.18,607.43,1.60825604]
[1743489421087,0.28601251,608.84,607.43,1.60825604]
[1743489421489,0.32831018,609.18,607.43,1.60825604]
[1743489421684,0.28601251,608.83,607.43,1.60825604]
[1743489422085,0.32831018,609.18,607.43,1.60825604]
[1743489422286,0.28601251,608.82,607.43,1.60825604]
[1743489422692,0.32831018,609.18,607.43,1.60825604]
[1743489422993,0.28601251,608.81,607.43,1.60825604]
[1743489423185,0.32831018,609.18,607.43,1.60825604]
[1743489423587,0.28601251,608.8,607.43,1.60825604]
[1743489423792,0.32831018,609.18,607.43,1.60825604]
[1743489425288,0.28594788,609.17,607.43,1.60825604]
[1743489426993,0.30194727,609.16,607.43,1.60825604]
[1743489427189,0.32831018,609.18,607.43,1.60825604]
[1743489427588,0.28602544,609.15,607.43,1.60825604]
[1743489430300,0.32831018,609.18,607.43,1.60825604]
[1743489430495,0.28602896,609.14,607.43,1.60825604]
[1743489433098,0.32831018,609.18,607.43,1.60825604]
[1743489433500,0.28602896,609.13,607.43,1.60825604]
[1743489436303,0.32831018,609.18,607.43,1.60825604]
[1743489436503,0.28602896,609.12,607.43,1.60825604]
[1743489437303,0.30196068,609.11,607.43,1.60825604]
[1743489439404,0.28603602,609.1,607.43,1.60825604]
[1743489439709,0.30196068,609.09,607.43,1.60825604]
[1743489441811,0.28603602,609.1,607.43,1.60825604]
[1743489442007,0.30195113,609.09,607.43,1.60825604]
[1743489442513,0.5879895,609.08,607.43,1.60825604]
[1743489442714,0.30195113,609.07,607.43,1.60825604]
[1743489445108,0.30195095,609.06,607.43,1.60825604]
[1743489445310,0.30195095,609.07,607.43,1.60825604]
[1743489445509,0.28604072,609.05,607.43,1.60825604]
[1743489448219,0.32831018,609.18,607.43,1.60825604]
[1743489448519,0.28600076,609.04,607.43,1.60825604]
[1743489448913,0.32831018,609.18,607.43,1.60825604]
[1743489449115,0.28600193,609.03,607.43,1.60825604]
[1743489449518,0.32831018,609.18,607.43,1.60825604]
[1743489449719,0.28600193,609.02,607.43,1.60825604]
[1743489450112,0.32831018,609.18,607.43,1.60825604]
[1743489450318,0.28600193,609.01,607.43,1.60825604]
[1743489450719,0.32831018,609.18,607.43,1.60825604]
[1743489450921,0.28600193,609.0,607.43,1.60825604]
[1743489451215,0.32831018,609.18,607.43,1.60825604]
[1743489451418,0.30193009,609.17,607.43,1.60825604]
[1743489451815,0.58790382,609.17,607.43,1.60825604]
[1743489452123,0.30193009,609.16,607.43,1.60825604]
[1743489454619,0.28600193,609.15,607.43,1.60825604]
[1743489455019,0.30193009,609.14,607.43,1.60825604]
[1743489457425,0.30193009,609.17,607.43,1.60825604]
[1743489457625,0.28600076,609.13,607.43,1.60825604]
[1743489458021,0.3019351,609.12,607.43,1.60825604]
[1743489458226,0.28600076,609.13,607.43,1.60825604]
[1743489458426,0.3019351,609.12,607.43,1.60825604]
[1743489459125,0.28600076,609.13,607.43,1.60825604]
[1743489459331,0.30193719,609.12,607.43,1.60825604]
[1743489460030,0.30193719,609.11,607.43,1.60825604]
[1743489460230,0.32831018,609.18,607.43,1.60825604]
[1743489460231,0.30193719,609.12,607.43,1.60825604]
[1743489460431,0.30193719,609.17,607.43,1.60825604]
[1743489460731,0.28601839,609.1,607.43,1.60825604]
[1743489463231,0.32831018,609.18,607.43,1.60825604]
[1743489463532,0.28601251,609.09,607.43,1.60825604]
[1743489463827,0.32831018,609.18,607.43,1.60825604]
[1743489464033,0.30193745,609.17,607.43,1.60825604]
[1743489464226,0.28601368,609.08,607.43,1.60825604]
[1743489464429,0.32831018,609.18,607.43,1.60825604]
[1743489464731,0.28601368,609.07,607.43,1.60825604]
[1743489465131,0.32831018,609.18,607.43,1.60825604]
[1743489465329,0.28601251,609.06,607.43,1.60825604]
[1743489465728,0.32831018,609.18,607.43,1.60825604]
[1743489465930,0.28601251,609.05,607.43,1.60825604]
[1743489466332,0.32831018,609.18,607.43,1.60825604]
[1743489466632,0.28601251,609.04,607.43,1.60825604]
[1743489466826,0.32831018,609.18,607.43,1.60825604]
[1743489467032,0.30192857,609.17,607.43,1.60825604]
[1743489467233,0.28601368,609.03,607.43,1.60825604]
[1743489467435,0.32831018,609.18,607.43,1.60825604]
[1743489467735,0.28601368,609.02,607.43,1.60825604]
[1743489468234,0.32831018,609.18,607.43,1.60825604]
[1743489468435,0.28601251,609.01,607.43,1.60825604]
[1743489468934,0.32831018,609.18,607.43,1.60825604]
[1743489469135,0.28601251,609.0,607.43,1.60825604]
[1743489469334,0.32831018,609.18,607.43,1.60825604]
[1743489469734,0.28601251,608.99,607.43,1.60825604]
[1743489470036,0.32831018,609.18,607.43,1.60825604]
[1743489470237,0.28601251,608.98,607.43,1.60825604]
[1743489470735,0.32831018,609.18,607.43,1.60825604]
[1743489471037,0.28601251,608.97,607.43,1.60825604]
[1743489471335,0.32831018,609.18,607.43,1.60825604]
[1743489471528,0.28601368,608.96,607.43,1.60825604]
[1743489471733,0.32831018,609.18,607.43,1.60825604]
[1743489471933,0.30192982,609.17,607.43,1.60825604]
[1743489472130,0.28601368,608.95,607.43,1.60825604]
[1743489472334,0.32831018,609.18,607.43,1.60825604]
[1743489472533,0.30192982,609.17,607.43,1.60825604]
[1743489472838,0.28601368,608.94,607.43,1.60825604]
[1743489473033,0.32831018,609.18,607.43,1.60825604]
[1743489473239,0.28601368,608.93,607.43,1.60825604]
[1743489473740,0.32831018,609.18,607.43,1.60825604]
[1743489473935,0.28601251,608.92,607.43,1.60825604]
[1743489474136,0.32831018,609.18,607.43,1.60825604]
[1743489474334,0.30193035,609.17,607.43,1.60825604]
[1743489474538,0.28601368,608.91,607.43,1.60825604]
[1743489475041,0.32831018,609.18,607.43,1.60825604]
[1743489475243,0.28601251,608.9,607.43,1.60825604]
[1743489475541,0.32831018,609.18,607.43,1.60825604]
[1743489475940,0.28601251,608.89,607.43,1.60825604]
[1743489476341,0.32831018,609.18,607.43,1.60825604]
[1743489476542,0.28601251,608.88,607.43,1.60825604]
[1743489476843,0.32831018,609.18,607.43,1.60825604]
[1743489477241,0.28602896,608.87,607.43,1.60825604]
[1743489477442,0.32831018,609.18,607.43,1.60825604]
[1743489477838,0.28602896,608.86,607.43,1.60825604]
[1743489478038,0.32831018,609.18,607.43,1.60825604]
[1743489478542,0.2859796,609.17,607.43,1.60825604]
[1743489481241,0.32831018,609.18,607.43,1.60825604]
[1743489481446,0.28600076,609.16,607.43,1.60825604]
[1743489484242,0.32831018,609.18,607.43,1.60825604]
[1743489484446,0.28599135,609.15,607.43,1.60825604]
[1743489487347,0.32831018,609.18,607.43,1.60825604]
[1743489487542,0.28599135,609.14,607.43,1.60825604]
[1743489490149,0.32831018,609.18,607.43,1.60825604]
[1743489490550,0.28590559,609.17,607.43,1.60825604]
[1743489493252,0.32831018,609.18,607.43,1.60825604]
[1743489493650,0.28599135,609.16,607.43,1.60825604]
[1743489496354,0.32831018,609.18,607.43,1.60825604]
[1743489496757,0.28599135,609.15,607.43,1.60825604]
[1743489499356,2.49605752,609.47,607.43,1.60825604]
[1743489499554,0.28594318,609.14,607.43,1.60825604]
[1743489499958,2.49605752,609.65,607.43,1.60825604]
[1743489500154,0.28594318,609.13,607.43,1.60825604]
[1743489500556,0.32806246,609.64,607.43,1.60825604]
[1743489500759,0.28592321,609.12,607.43,1.60825604]
[1743489501157,0.32806246,609.64,607.43,1.60825604]
[1743489501358,0.28592321,609.11,607.43,1.60825604]
[1743489501858,0.32806246,609.64,607.43,1.60825604]
[1743489502059,0.28592321,609.1,607.43,1.60825604]
[1743489502259,2.82411998,609.64,607.43,1.60825604]
[1743489502458,0.30186847,609.63,607.43,1.60825604]
[1743489502760,0.28592439,609.09,607.43,1.60825604]
[1743489502958,0.32807322,609.62,607.43,1.60825604]
[1743489503152,0.28592321,609.08,607.43,1.60825604]
[1743489503659,0.32807322,609.62,607.43,1.60825604]
[1743489503954,0.28592321,609.07,607.43,1.60825604]
[1743489504160,0.32807322,609.62,607.43,1.60825604]
[1743489504359,0.28591264,609.06,607.43,1.60825604]
[1743489504858,0.32807322,609.62,607.43,1.60825604]
[1743489505058,0.28591147,609.05,607.43,1.60825604]
[1743489505261,0.32807322,609.62,607.43,1.60825604]
[1743489505460,0.30184597,609.61,607.43,1.60825604]
[1743489505660,0.28591264,609.04,607.43,1.60825604]
[1743489505857,0.32808398,609.6,607.43,1.60825604]
[1743489506158,0.28592556,609.03,607.43,1.60825604]
[1743489506656,0.32808398,609.6,607.43,1.60825604]
[1743489506861,0.28592556,609.02,607.43,1.60825604]
[1743489507060,2.49605752,609.54,607.43,1.60825604]
[1743489507262,0.30186118,609.53,607.43,1.60825604]
[1743489507459,0.28592674,609.01,607.43,1.60825604]
[1743489507861,2.49605752,609.54,607.43,1.60825604]
[1743489508062,0.28593261,609.0,607.43,1.60825604]
[1743489508360,0.32808398,609.6,607.43,1.60825604]
[1743489508361,2.49605752,609.55,607.43,1.60825604]
[1743489508556,0.28593378,608.99,607.43,1.60825604]
[1743489508960,2.82416842,609.55,607.43,1.60825604]
[1743489509160,0.28593261,608.98,607.43,1.60825604]
[1743489509560,2.82416842,609.55,607.43,1.60825604]
[1743489509763,0.30184464,609.54,607.43,1.60825604]
[1743489509968,0.28593143,608.97,607.43,1.60825604]
[1743489510261,2.82416842,609.55,607.43,1.60825604]
[1743489510465,0.28593261,608.96,607.43,1.60825604]
[1743489510859,2.82416842,609.55,607.43,1.60825604]
[1743489511065,0.28593261,608.95,607.43,1.60825604]
[1743489511465,0.3281109,609.55,607.43,1.60825604]
[1743489511664,0.28593143,608.94,607.43,1.60825604]
[1743489512060,0.3281109,609.55,607.43,1.60825604]
[1743489512265,0.28593261,608.93,607.43,1.60825604]
[1743489512567,0.3281109,609.55,607.43,1.60825604]
[1743489512761,0.30184642,609.54,607.43,1.60825604]
[1743489512965,0.28593261,608.92,607.43,1.60825604]
[1743489513162,0.3281109,609.55,607.43,1.60825604]
[1743489513368,0.28593261,608.91,607.43,1.60825604]
[1743489513767,0.3281109,609.55,607.43,1.60825604]
[1743489513960,0.28593143,608.9,607.43,1.60825604]
[1743489515867,0.28593143,608.9,607.51,2.51290083]
[1743489516067,0.28593143,608.9,607.53,0.32920185]
[1743489517274,2.49605752,609.46,607.53,0.32920185]
[1743489517468,0.28593496,608.89,607.53,0.32920185]
[1743489517875,2.49605752,609.46,607.53,0.32920185]
[1743489518073,0.28592791,608.88,607.53,0.32920185]
[1743489518479,2.49605752,609.46,607.53,0.32920185]
[1743489518778,0.28592791,608.87,607.53,0.32920185]
[1743489518978,2.49605752,609.46,607.53,1.03520185]
[1743489519178,0.3018449,609.45,607.53,1.60820185]
[1743489519375,0.28592908,608.86,607.53,1.60820185]
[1743489519579,2.49605752,609.46,607.53,3.48152687]
[1743489519779,0.30184464,609.45,607.53,3.48152687]
[1743489519979,0.28592674,608.85,607.53,3.48152687]
[1743489520374,2.49605752,609.46,607.53,3.48152687]
[1743489520578,0.28592674,608.84,607.53,3.48152687]
[1743489520980,2.49605752,609.46,607.53,3.48152687]
[1743489521281,0.28592204,608.83,607.53,3.48152687]
[1743489521477,2.49605752,609.46,607.53,3.48152687]
[1743489521680,0.30184464,609.45,607.53,3.48152687]
[1743489521881,0.28592204,608.82,607.53,3.48152687]
[1743489522083,2.49605752,609.47,607.53,3.48152687]
[1743489522385,0.28593143,608.81,607.53,3.48152687]
[1743489522776,2.49605752,609.47,607.53,3.48152687]
[1743489522980,0.28594671,608.8,607.53,3.48152687]
[1743489523381,2.49605752,609.47,607.53,3.48152687]
[1743489523581,0.28594671,608.79,607.53,3.48152687]
[1743489523978,2.49605752,609.47,607.53,3.48152687]
[1743489524179,0.28594671,608.78,607.53,3.48152687]
[1743489524579,2.49605752,609.47,607.53,3.48152687]
[1743489524783,0.28594671,608.77,607.53,3.48152687]
[1743489525278,2.49605752,609.47,607.53,3.48152687]
[1743489525484,0.28594671,608.76,607.53,3.48152687]
[1743489525685,0.3281109,609.55,607.53,3.48152687]
[1743489525877,0.30188277,609.54,607.53,3.48152687]
[1743489526077,0.28594671,608.75,607.53,3.48152687]
[1743489526481,0.32812166,609.53,607.53,1.60820185]
[1743489526678,0.3018804,609.52,607.53,1.60820185]
[1743489526878,0.32813243,609.51,607.53,1.60820185]
[1743489527083,0.30189044,609.5,607.53,1.60820185]
[1743489527286,0.3281432,609.49,607.53,1.60820185]
[1743489527486,0.30189044,609.48,607.53,1.60820185]
[1743489527685,0.63003902,609.48,607.53,1.60820185]
[1743489527987,0.30189044,609.47,607.53,1.60820185]
[1743489529585,0.28594436,609.46,607.53,1.60820185]
[1743489529786,0.30189044,609.45,607.53,1.60820185]
[1743489532584,0.5878301,609.44,607.53,1.60820185]
[1743489532785,0.30189044,609.43,607.53,1.60820185]
[1743489535583,0.28594201,609.42,607.53,1.60820185]
[1743489535786,0.58783245,609.42,607.53,1.60820185]
[1743489535991,0.30189044,609.41,607.53,1.60820185]
[1743489538394,0.30189044,609.47,607.53,1.60820185]
[1743489538594,0.32814858,609.48,607.53,1.60820185]
[1743489538595,0.28594436,609.4,607.53,1.60820185]
[1743489538890,0.30189044,609.39,607.53,1.60820185]
[1743489540294,0.30187927,609.38,607.53,1.60820185]
[1743489540487,0.30187927,609.39,607.53,1.60820185]
[1743489541493,0.30187927,609.38,607.53,1.60820185]
[1743489541693,0.28597255,609.38,607.53,1.60820185]
[1743489541893,0.30187927,609.37,607.53,1.60820185]
[1743489544397,0.30187927,609.47,607.53,1.60820185]
[1743489544596,0.2859749,609.36,607.53,1.60820185]
[1743489544894,0.63008519,609.46,607.53,1.60820185]
[1743489544895,0.30192584,609.35,607.53,1.60820185]
[1743489545095,0.2859655,609.35,607.53,1.60820185]
[1743489545295,0.30192584,609.34,607.53,1.60820185]
[1743489546196,0.2859655,609.35,607.53,1.60820185]
[1743489546396,0.30192356,609.34,607.53,1.60820185]
[1743489547395,0.30192356,609.33,607.53,1.60820185]
[1743489547596,0.28597843,609.33,607.53,1.60820185]
[1743489547791,0.30192356,609.32,607.53,1.60820185]
[1743489549594,0.30192346,609.31,607.53,1.60820185]
[1743489549796,0.30192346,609.3,607.53,1.60820185]
[1743489549997,0.28597843,609.33,607.53,1.60820185]
[1743489549998,0.30192346,609.32,607.53,1.60820185]
[1743489550194,0.30192346,609.31,607.53,1.60820185]
[1743489550394,0.30192346,609.32,607.53,1.60820185]
[1743489550598,0.58790424,609.31,607.53,1.60820185]
[1743489550797,0.30192346,609.3,607.53,1.60820185]
[1743489551199,0.28598078,609.31,607.53,1.60820185]
[1743489551395,0.30192225,609.3,607.53,1.60820185]
[1743489552799,0.28598078,609.31,607.53,1.60820185]
[1743489552999,0.30190448,609.3,607.53,1.60820185]
[1743489553398,0.30190448,609.45,607.53,1.60820185]
[1743489553594,0.28596668,609.29,607.53,1.60820185]
[1743489553794,0.30190448,609.28,607.53,1.60820185]
[1743489553999,0.30190448,609.45,607.53,1.60820185]
[1743489554199,0.28594788,609.28,607.53,1.60820185]
[1743489554400,0.32815935,609.46,607.53,1.60820185]
[1743489554701,0.30187977,609.45,607.53,1.60820185]
[1743489554902,0.28594083,609.27,607.53,1.60820185]
[1743489555101,0.32815935,609.46,607.53,1.60820185]
[1743489555299,0.28592439,609.26,607.53,1.60820185]
[1743489555697,0.32815935,609.46,607.53,1.60820185]
[1743489555898,0.30186164,609.45,607.53,1.60820185]
[1743489556099,0.28592321,609.25,607.53,1.60820185]
[1743489556301,0.32815935,609.46,607.53,1.60820185]
[1743489556502,0.3018598,609.45,607.53,1.60820185]
[1743489556803,0.28592439,609.24,607.53,1.60820185]
[1743489557002,0.32815935,609.46,607.53,1.60820185]
[1743489557303,0.28592321,609.23,607.53,1.60820185]
[1743489557498,0.32815935,609.46,607.53,1.60820185]
[1743489557700,0.30184987,609.45,607.53,1.60820185]
[1743489557900,0.28592439,609.22,607.53,1.60820185]
[1743489558098,0.32815935,609.46,607.53,1.60820185]
[1743489558404,0.28592556,609.21,607.53,1.60820185]
[1743489558703,0.32815935,609.46,607.53,1.60820185]
[1743489558895,0.30185176,609.45,607.53,1.60820185]
[1743489559096,0.28592439,609.2,607.53,1.60820185]
[1743489559298,0.32815935,609.46,607.53,1.60820185]
[1743489559503,0.30185192,609.45,607.53,1.60820185]
[1743489559698,0.28592439,609.19,607.53,1.60820185]
[1743489559904,0.32815935,609.46,607.53,1.60820185]
[1743489560200,0.28592439,609.18,607.53,1.60820185]
[1743489560604,0.32815935,609.46,607.53,1.60820185]
[1743489560807,0.30185013,609.45,607.53,1.60820185]
[1743489561007,0.28592439,609.17,607.53,1.60820185]
[1743489561208,0.32815935,609.46,607.53,1.60820185]
[1743489561407,0.30185013,609.45,607.53,1.60820185]
[1743489561604,0.28592439,609.16,607.53,1.60820185]
[1743489561804,0.32815935,609.46,607.53,1.60820185]
[1743489562005,0.30185013,609.45,607.53,1.60820185]
[1743489562202,0.28592439,609.15,607.53,1.60820185]
[1743489562408,0.32815935,609.46,607.53,1.60820185]
[1743489562605,0.30184987,609.45,607.53,1.60820185]
[1743489562802,0.28592439,609.14,607.53,1.60820185]
[1743489563008,0.32815935,609.46,607.53,1.60820185]
[1743489563203,0.30185013,609.45,607.53,1.60820185]
[1743489563407,0.28592439,609.13,607.53,1.60820185]
[1743489563604,0.32815935,609.46,607.53,1.60820185]
[1743489563805,0.28592439,609.12,607.53,1.60820185]
[1743489564311,0.32815935,609.46,607.53,1.60820185]
[1743489564513,0.28592439,609.11,607.53,1.60820185]
[1743489564811,0.32815935,609.46,607.53,1.60820185]
[1743489565107,0.28591499,609.1,607.53,1.60820185]
[1743489565411,0.32815935,609.46,607.53,1.60820185]
[1743489565611,0.28591382,609.09,607.53,1.60820185]
[1743489566112,0.32815935,609.46,607.53,1.60820185]
[1743489566309,0.28589385,609.08,607.53,1.60820185]
[1743489566706,0.32815935,609.46,607.53,1.60820185]
[1743489567111,0.28588093,609.07,607.53,1.60820185]
[1743489567313,0.32815935,609.46,607.53,1.60820185]
[1743489567712,0.28588093,609.06,607.53,1.60820185]
[1743489567907,0.32815935,609.46,607.53,1.60820185]
[1743489568310,0.28588093,609.05,607.53,1.60820185]
[1743489568510,0.32815935,609.46,607.53,1.60820185]
[1743489568907,0.28588093,609.04,607.53,1.60820185]
[1743489569108,0.32815935,609.46,607.53,1.60820185]
[1743489569509,0.28588093,609.03,607.53,1.60820185]
[1743489569712,0.32815935,609.46,607.53,1.60820185]
[1743489570112,0.28588093,609.02,607.53,1.60820185]
[1743489570415,0.32815935,609.46,607.53,1.60820185]
[1743489570615,0.28588093,609.01,607.53,1.60820185]
[1743489571016,0.32815935,609.46,607.53,1.60820185]
[1743489571212,0.28588093,609.0,607.53,1.60820185]
[1743489571616,0.32815935,609.46,607.53,1.60820185]
[1743489572010,0.28588093,608.99,607.53,1.60820185]
[1743489572216,0.32815935,609.46,607.53,1.60820185]
[1743489572615,0.28588093,608.98,607.53,1.60820185]
[1743489572816,0.32815935,609.46,607.53,1.60820185]
[1743489573313,0.28588093,608.97,607.53,1.60820185]
[1743489573510,0.32815935,609.46,607.53,1.60820185]
[1743489573715,0.28588093,608.96,607.53,1.60820185]
[1743489574112,0.32815935,609.46,607.53,1.60820185]
[1743489574513,0.28588093,608.95,607.53,1.60820185]
[1743489574818,0.32815935,609.46,607.53,1.60820185]
[1743489575019,0.28588093,608.94,607.53,1.60820185]
[1743489575516,0.32815935,609.46,607.53,1.60820185]
[1743489575720,0.28588093,608.94,607.53,1.60820185]
[1743489576020,0.32815935,609.46,607.53,1.60820185]
[1743489576320,0.28588093,608.94,607.53,1.60820185]
[1743489576521,0.32815935,609.46,607.53,1.60820185]
[1743489576720,2.49605752,610.23,607.53,1.60820185]
[1743489576920,0.32775601,610.21,607.53,1.60820185]
[1743489577120,0.28586215,609.02,607.53,1.60820185]
[1743489577423,0.32775601,610.21,607.53,1.60820185]
[1743489577622,0.30169999,610.2,607.53,1.60820185]
[1743489578019,0.32777213,610.18,607.53,1.60820185]
[1743489578214,0.30169999,610.17,607.53,1.60820185]
[1743489578616,0.32778824,610.15,607.53,1.60820185]
[1743489578820,0.30169999,610.14,607.53,1.60820185]
[1743489579021,0.32780436,610.12,607.53,1.60820185]
[1743489579321,0.30169974,610.11,607.53,1.60820185]
[1743489579519,0.32781511,610.1,607.53,1.60820185]
[1743489579720,0.30169974,610.09,607.53,1.60820185]
[1743489580020,0.32782585,610.08,607.53,1.60820185]
[1743489580219,0.30169974,610.07,607.53,1.60820185]
[1743489580622,0.3278366,610.06,607.53,1.60820185]
[1743489580921,0.30169974,610.05,607.53,1.60820185]
[1743489581121,0.32784735,610.04,607.53,1.60820185]
[1743489581420,0.30169974,610.03,607.53,1.60820185]
[1743489581622,0.3278581,610.02,607.53,1.60820185]